bitfinex-derivatives/quotes_ETHF0:USTF0_20250220
["timestamp","ask_amount","ask_price","bid_price","bid_amount"]
[1740067886586,0.73252,2729.7,2729.6,1.3264257]
[1740067886785,3.61152,2729.7,2729.6,1.3264257]
[1740067886996,3.61152,2729.7,2729.6,0.51016373]
[1740067887986,3.61152,2729.7,2729.6,3.22994476]
[1740067888499,3.61152,2729.7,2729.6,5.7497906]
[1740067888707,3.19865553,2729.7,2729.6,5.7497906]
[1740067889200,3.2078,2730.3,2729.6,8.26954861]
[1740067889407,3.2078,2730.3,2729.9,0.45441332]
[1740067889711,0.73239,2730.2,2730.0,2.97773108]
[1740067890001,0.73238,2730.2,2730.1,2.52331776]
[1740067890208,3.2078,2730.3,2730.1,4.23642527]
[1740067890400,3.2078,2730.3,2730.2,2.77558559]
[1740067890597,3.94015,2730.3,2730.2,2.77558559]
[1740067890897,6.84115,2730.3,2730.2,2.77558559]
[1740067891101,6.84115,2730.3,2730.2,4.71113142]
[1740067891905,3.94015,2730.3,2730.2,4.72376662]
[1740067892207,1.8303,2731.2,2730.2,9.2790407]
[1740067892509,1.8303,2731.2,2730.1,3.2078]
[1740067892510,0.73225,2730.7,2730.6,0.45412698]
[1740067892704,2.914,2731.2,2730.6,5.1778936]
[1740067892899,0.73224,2730.8,2730.7,4.72376662]
[1740067893300,0.73224,2730.8,2730.7,3.81513488]
[1740067893500,0.73222,2730.8,2730.7,3.81513488]
[1740067894014,0.73222,2730.8,2730.7,2.63355466]
[1740067894307,0.73222,2730.8,2730.7,2.63349684]
[1740067895005,3.64222,2730.8,2730.7,5.97155291]
[1740067895217,6.1168,2731.2,2730.7,5.97155291]
[1740067895412,6.1168,2731.2,2730.4,6.16529974]
[1740067895413,3.2078,2731.2,2730.8,6.53810847]
[1740067895608,0.73217,2731.0,2730.9,5.97155291]
[1740067895912,2.908,2731.2,2730.9,6.53746708]
[1740067896209,0.73214,2731.1,2731.0,3.82373215]
[1740067896411,0.73214,2731.1,2731.0,3.09104096]
[1740067896716,3.2078,2731.9,2731.0,18.42247151]
[1740067896915,0.73197,2731.8,2731.3,3.2078]
[1740067897112,3.2078,2731.9,2731.4,5.34067456]
[1740067897310,3.93981,2731.6,2731.5,4.23537456]
[1740067897613,6.86381,2731.6,2731.5,5.89001848]
[1740067897914,3.93981,2731.6,2731.5,4.20456517]
[1740067898109,3.93981,2731.6,2731.5,3.91963396]
[1740067898314,3.93981,2731.6,2731.5,2.2938925]
[1740067898609,9.93981,2731.6,2731.5,2.2938925]
[1740067898910,3.2078,2731.6,2730.7,7.6e-06]
[1740067899110,3.2078,2730.8,2730.2,3.2078]
[1740067899415,2.935,2730.7,2730.2,3.2078]
[1740067899715,3.2078,2731.1,2730.2,3.2078]
[1740067899914,0.73221,2730.9,2730.5,1.10439822]
[1740067900117,0.73221,2730.9,2730.6,2.65069989]
[1740067900310,0.73222,2730.8,2730.7,2.10649989]
[1740067901813,2.94,2731.0,2730.7,2.091275]
[1740067902013,3.2078,2731.1,2730.4,0.00549974]
[1740067902209,0.73226,2730.7,2730.4,0.00549974]
[1740067902410,5.03816,2731.1,2730.4,0.00549974]
[1740067902609,0.73226,2730.7,2730.4,0.00549974]
[1740067903017,3.2078,2731.7,2730.6,3.2078]
[1740067903313,3.2078,2731.7,2731.5,0.45293214]
[1740067903613,3.93978,2731.7,2731.6,1.97939552]
[1740067905206,6.88378,2731.7,2731.6,1.06365959]
[1740067905711,6.88378,2731.7,2731.6,6.54e-06]
[1740067905915,6.1518,2731.7,2731.0,3.2078]
[1740067906112,1.83006,2731.6,2731.0,3.2078]
[1740067906316,0.73214,2731.1,2731.0,3.2078]
[1740067906518,0.73222,2730.8,2730.7,0.5888]
[1740067906712,2.94,2731.1,2730.6,3.2078]
[1740067906913,0.5457,2731.0,2730.9,0.56589306]
[1740067907113,1.27787,2731.0,2730.9,0.56589306]
[1740067907819,0.7323,2730.5,2730.4,0.00549974]
[1740067908020,3.6643,2730.5,2730.4,0.00549974]
[1740067908211,3.6643,2730.5,2730.4,1.15054403]
[1740067908918,3.6603,2730.5,2730.4,2.06655231]
[1740067909114,3.6603,2730.5,2730.4,2.78195384]
[1740067909309,3.6603,2730.5,2730.4,2.7819514]
[1740067909514,3.6603,2730.5,2730.4,3.35444654]
[1740067909907,2.928,2730.5,2730.4,0.72089883]
[1740067910107,0.73226,2730.7,2730.4,2.20927757]
[1740067910318,3.7535,2731.0,2730.5,2.18751093]
[1740067910523,3.7535,2731.0,2730.6,0.57245336]
[1740067910524,0.73225,2730.7,2730.6,0.57245336]
[1740067910713,3.94005,2730.7,2730.6,0.57245336]
[1740067911012,0.7323,2730.5,2730.4,0.00549974]
[1740067912017,3.2078,2730.7,2730.4,0.00549974]
[1740067912215,2.914,2730.9,2730.4,0.00549974]
[1740067912615,0.7323,2730.5,2730.4,0.00549974]
[1740067913118,0.7323,2730.5,2730.4,0.57797463]
[1740067913421,0.7323,2730.5,2730.4,0.00549974]
[1740067916819,2.949,2731.0,2730.4,0.00549974]
[1740067916820,3.2078,2731.5,2730.4,0.00549974]
[1740067917016,0.73227,2730.7,2730.6,3.2078]
[1740067917216,0.7323,2730.5,2730.4,0.00549974]
[1740067918023,2.896,2730.8,2730.4,0.00549974]
[1740067918420,0.73227,2730.6,2730.4,0.00549974]
[1740067918721,0.7323,2730.5,2730.4,0.00549974]
[1740067919123,0.73229,2730.6,2730.4,0.00549974]
[1740067919322,2.896,2730.8,2730.4,0.00549974]
[1740067919523,1.83053,2730.9,2730.4,0.00549974]
[1740067919722,2.886,2730.8,2730.4,0.00549974]
[1740067920224,0.7323,2730.5,2730.4,0.00549974]
[1740067920625,0.7323,2730.6,2730.4,0.00549974]
[1740067920920,3.2078,2731.1,2730.4,0.00549974]
[1740067921120,0.73212,2731.2,2730.8,3.94001]
[1740067921317,2.881,2731.4,2731.1,3.2078]
[1740067921726,0.73206,2731.4,2731.1,3.2078]
[1740067922024,2.88,2731.7,2731.1,3.2078]
[1740067922428,0.5725,2732.0,2731.4,3.2078]
[1740067922624,0.29557752,2732.6,2731.7,3.2078]
[1740067922830,2.89001,2732.3,2731.7,3.2078]
[1740067923024,0.73195,2731.8,2731.7,3.2078]
[1740067923224,0.01301,2732.3,2731.7,6.1598]
[1740067923529,0.01301,2732.3,2730.6,4.12275404]
[1740067923723,3.2078,2730.7,2729.3,3.2078]
[1740067923923,0.27240247,2729.5,2728.8,1.34573151]
[1740067924126,3.2078,2728.9,2727.6,14.61292147]
[1740067924325,3.2078,2728.8,2728.7,0.27184339]
[1740067924525,20.313,2730.1,2728.8,0.27184339]
[1740067924721,3.2078,2729.2,2728.4,3.2078]
[1740067924923,3.2078,2729.9,2729.0,3.2078]
[1740067925127,3.2078,2729.9,2729.0,6.5018]
[1740067925322,3.2078,2729.9,2729.8,0.27184339]
[1740067925524,4.24119691,2729.9,2729.8,0.27184339]
[1740067925728,3.50873691,2729.9,2729.0,3.294]
[1740067926027,3.2078,2729.6,2729.0,3.294]
[1740067926230,3.2078,2729.6,2728.6,3.7834]
[1740067926428,0.30093691,2729.8,2729.5,0.27184339]
[1740067926730,3.2078,2729.9,2729.7,0.27184339]
[1740067927031,3.2078,2729.9,2729.8,0.27184339]
[1740067927229,3.2078,2730.2,2729.8,0.27184339]
[1740067927432,0.31093632,2729.9,2729.6,0.5491]
[1740067927723,3.9401,2730.5,2729.7,0.00549974]
[1740067927928,3.2078,2730.5,2730.4,0.27184339]
[1740067928123,3.94003,2730.8,2730.4,0.27184339]
[1740067928324,3.94003,2730.8,2729.8,3.2078]
[1740067928528,3.94002,2730.8,2730.7,0.27184339]
[1740067928728,3.2078,2730.8,2730.7,0.27184339]
[1740067929127,3.94002,2730.8,2730.7,0.27184339]
[1740067929532,3.2078,2730.8,2730.7,0.27184339]
[1740067930231,3.2078,2731.0,2730.7,0.27184339]
[1740067930423,3.2078,2731.0,2730.3,1.1152]
[1740067930629,3.2078,2731.0,2730.9,0.27184339]
[1740067931526,3.2078,2731.4,2730.9,0.27184339]
[1740067931731,3.2078,2731.7,2731.5,0.27184339]
[1740067931926,6.4698,2732.1,2731.9,0.27184339]
[1740067932132,3.262,2732.1,2732.0,0.27184339]
[1740067932329,6.4698,2732.1,2732.0,0.27184339]
[1740067932629,3.93967,2732.1,2732.0,0.27184339]
[1740067932836,3.2078,2732.1,2732.0,0.27184339]
[1740067933031,3.93967,2732.1,2732.0,0.27184339]
[1740067933227,3.93967,2732.1,2731.7,0.00549974]
[1740067933228,3.2078,2732.1,2731.7,0.00549974]
[1740067933426,0.5433,2732.3,2731.7,0.00549974]
[1740067933427,3.93975,2731.8,2731.7,0.00549974]
[1740067934634,8.0958,2731.8,2731.0,0.5603]
[1740067934934,3.2078,2731.1,2731.0,0.5603]
[1740067935436,8.0958,2731.1,2730.4,0.5898]
[1740067935636,3.248,2731.4,2730.5,0.27184339]
[1740067935637,3.94007,2730.6,2730.5,0.27184339]
[1740067935836,3.94007,2730.6,2730.5,0.27734313]
[1740067936024,3.2078,2730.6,2730.5,0.27734313]
[1740067937135,3.94007,2730.6,2730.5,0.27734313]
[1740067937341,3.94007,2730.6,2730.5,0.00549974]
[1740067937933,9.2078,2730.6,2729.6,3.2078]
[1740067938238,0.73249,2729.8,2729.7,0.27184339]
[1740067938435,0.73249,2729.8,2729.1,7.74651403]
[1740067938436,0.73263,2729.3,2729.1,4.53871403]
[1740067938740,3.2078,2729.3,2729.1,4.53871403]
[1740067938935,3.2078,2729.3,2729.2,0.27184339]
[1740067940034,6.1568,2729.3,2728.9,0.00549974]
[1740067940538,0.7327,2729.0,2728.9,0.00549974]
[1740067941035,3.9405,2729.0,2728.9,0.00549974]
[1740067941339,15.0045,2729.0,2728.9,0.00549974]
[1740067941541,14.2718,2729.0,2727.6,0.73307]
[1740067941740,3.2078,2728.4,2727.8,0.73302]
[1740067941938,6.1568,2728.4,2727.7,0.73305]
[1740067942234,6.88966,2728.4,2728.3,0.27184339]
[1740067942436,0.73292,2728.2,2728.1,0.27184339]
[1740067942735,11.0448,2728.4,2728.0,0.27184339]
[1740067942929,11.0448,2728.4,2728.3,0.27184339]
[1740067943137,11.77766,2728.4,2728.3,0.27184339]
[1740067943440,11.0448,2728.4,2728.3,0.27184339]
[1740067943641,11.77766,2728.4,2728.3,0.27184339]
[1740067943940,0.73292,2728.2,2727.9,0.00549974]
[1740067944142,3.94074,2728.1,2728.0,0.27184339]
[1740067944440,0.73297,2728.0,2727.9,0.00549974]
[1740067944638,1.32377,2728.0,2727.9,0.00549974]
[1740067944845,6.4358,2728.1,2727.9,0.27734313]
[1740067945041,3.2078,2728.1,2728.0,0.27184339]
[1740067945438,3.2078,2728.1,2728.0,1.00481339]
[1740067945637,2.949,2728.5,2728.0,6.27184339]
[1740067945946,2.949,2728.5,2728.4,0.27184339]
[1740067946136,0.00549974,2728.6,2728.5,0.73284]
[1740067946333,0.00549974,2728.6,2728.5,1.00468339]
[1740067946642,3.2078,2729.4,2728.5,6.27184339]
[1740067946844,3.2078,2729.4,2728.6,3.2078]
[1740067946845,2.949,2729.3,2728.6,3.2078]
[1740067947034,2.949,2729.3,2728.7,0.5532]
[1740067947351,2.949,2729.3,2729.2,0.27184339]
[1740067947539,3.9404,2729.4,2729.2,0.27184339]
[1740067947840,3.9404,2729.4,2729.3,0.27184339]
[1740067948239,3.2078,2729.4,2729.3,0.27184339]
[1740067948435,3.9404,2729.4,2729.3,0.27184339]
[1740067949142,3.2078,2729.4,2729.3,0.27184339]
[1740067950645,3.2078,2729.4,2728.7,0.5532]
[1740067950646,3.94042,2729.4,2728.7,0.5532]
[1740067950845,3.94042,2729.4,2729.2,0.27184339]
[1740067951545,3.2078,2729.4,2729.2,0.27184339]
[1740067951844,3.2078,2729.4,2728.7,0.5532]
[1740067952039,3.2078,2729.4,2729.1,0.27184339]
[1740067952344,3.2078,2729.4,2729.2,0.27184339]
[1740067952740,3.2078,2729.4,2729.3,1.00446339]
[1740067952934,3.2078,2729.4,2729.3,0.27184339]
[1740067953136,6.1568,2729.4,2729.3,0.27184339]
[1740067953840,6.1568,2729.4,2729.3,1.00446339]
[1740067954043,0.00549974,2729.6,2729.5,0.73257]
[1740067954245,0.5899,2730.2,2729.9,0.73245]
[1740067954546,0.5899,2730.2,2730.1,0.27184339]
[1740067955341,0.00549974,2730.4,2730.1,6.27184339]
[1740067955546,0.00549974,2730.4,2730.3,4.21199339]
[1740067955842,0.5899,2731.2,2730.3,3.47964339]
[1740067956049,3.2078,2731.6,2731.3,0.73207]
[1740067956242,3.2078,2731.6,2731.5,0.27184339]
[1740067956843,0.5899,2731.8,2731.5,0.27184339]
[1740067957136,3.93974,2731.9,2731.7,0.27184339]
[1740067957342,3.2078,2731.9,2731.8,0.27184339]
[1740067957544,2.949,2731.9,2731.8,0.27184339]
[1740067958146,6.1568,2731.9,2731.4,3.168]
[1740067958446,3.2078,2731.6,2731.3,0.00549974]
[1740067959246,0.73206,2731.4,2731.3,0.00549974]
[1740067960145,6.0,2731.4,2730.2,0.73237]
[1740067960349,3.2078,2730.7,2730.6,0.27184339]
[1740067960540,6.1568,2730.7,2730.6,0.27184339]
[1740067962752,6.88905,2730.7,2730.6,0.27184339]
[1740067962954,6.88905,2730.7,2730.4,0.00549974]
[1740067962955,0.73227,2730.6,2730.4,0.00549974]
[1740067963248,0.7323,2730.5,2730.4,0.00549974]
[1740067963446,7.837,2730.5,2729.2,23.5238]
[1740067963750,3.2078,2729.7,2729.2,0.5744]
[1740067963946,6.1568,2729.7,2729.0,1.83175]
[1740067964148,6.1568,2729.7,2729.6,0.27184339]
[1740067965146,6.1568,2729.7,2729.4,0.00549974]
[1740067965350,6.1568,2729.7,2729.4,0.27734313]
[1740067966348,0.73256,2729.6,2729.4,0.27734313]
[1740067966549,6.1568,2729.7,2729.6,0.27184339]
[1740067966855,2.949,2729.7,2729.6,4.21218339]
[1740067967048,0.00549974,2729.9,2729.8,0.73249]
[1740067967247,0.00549974,2729.9,2729.8,0.27184339]
[1740067967653,0.00549974,2729.9,2729.8,7.00433339]
[1740067968049,0.00549974,2729.9,2729.8,0.27184339]
[1740067968459,3.68695974,2729.9,2729.8,0.27184339]
[1740067969159,2.95449974,2729.9,2729.4,0.00549974]
[1740067969460,0.73252,2729.7,2729.6,0.27184339]
[1740067969754,3.68152,2729.7,2729.6,0.27184339]
[1740067969959,0.73257,2729.5,2729.4,0.00549974]
[1740067970156,2.949,2729.7,2729.6,1.00438339]
[1740067970355,2.949,2729.7,2729.6,0.27184339]
[1740067970556,2.949,2729.7,2729.6,1.00438339]
[1740067971553,2.949,2729.7,2729.6,0.27184339]
[1740067971757,3.68152,2729.7,2729.6,0.27184339]
[1740067973167,0.73257,2729.5,2729.4,0.00549974]
[1740067973364,3.94037,2729.5,2729.4,0.27734313]
[1740067973560,3.94037,2729.5,2729.4,0.00549974]
[1740067973759,4.49907,2729.5,2729.4,0.00549974]
[1740067974563,3.2078,2729.5,2729.4,0.27734313]
[1740067974866,3.2078,2729.5,2729.4,1.00994313]
[1740067975476,3.94031,2729.8,2729.5,0.73256]
[1740067975666,3.94029,2729.8,2729.7,0.27184339]
[1740067976070,3.94029,2729.8,2729.4,0.00549974]
[1740067976071,0.73253,2729.7,2729.4,0.73807974]
[1740067976267,3.2078,2729.8,2729.7,0.27184339]
[1740067976471,3.9403,2729.8,2729.4,0.00549974]
[1740067976670,3.9403,2729.8,2729.7,0.27184339]
[1740067977074,3.9403,2729.8,2729.4,0.00549974]
[1740067977075,3.2078,2729.8,2729.4,0.00549974]
[1740067977370,0.00549974,2729.9,2729.7,0.27184339]
[1740067977578,3.94011,2730.5,2730.2,0.73237]
[1740067977770,3.94011,2730.5,2730.4,0.27184339]
[1740067977971,6.1568,2730.5,2730.4,0.27184339]
[1740067978171,6.88911,2730.5,2730.2,0.73236]
[1740067978372,6.88911,2730.5,2730.4,0.27184339]
[1740067978674,0.73238,2730.2,2730.1,0.27184339]
[1740067979476,0.5516,2730.4,2730.1,0.27184339]
[1740067979963,0.5516,2730.4,2729.8,3.2078]
[1740067979964,0.5516,2730.4,2730.2,0.27184339]
[1740067980169,0.5516,2730.4,2730.3,0.27184339]
[1740067980871,1.28393,2730.4,2730.3,0.27184339]
[1740067981064,1.28393,2730.4,2729.6,0.5747]
[1740067981065,0.5516,2730.4,2729.6,0.5747]
[1740067981269,0.73243,2730.0,2729.9,0.27184339]
[1740067981469,3.2078,2730.1,2729.9,0.27184339]
[1740067981666,3.2078,2730.1,2729.4,3.21329974]
[1740067981667,3.2078,2730.1,2730.0,0.27184339]
[1740067981872,2.949,2730.3,2730.0,0.27184339]
[1740067982074,2.949,2730.3,2730.2,1.00422339]
[1740067982270,2.949,2730.3,2730.2,0.27184339]
[1740067982472,1.95327479,2737.5,2730.6,0.73227]
[1740067982473,0.00549974,2730.7,2730.6,0.73227]
[1740067982777,0.73775974,2730.7,2730.5,0.27184339]
[1740067982975,0.00549974,2730.7,2730.2,1.83096]
[1740067983173,0.00549974,2730.7,2730.6,1.00411339]
[1740067983778,0.00549974,2730.7,2730.6,4.08511339]
[1740067984773,0.00549974,2730.7,2730.6,3.35284339]
[1740067984977,0.73774974,2730.7,2730.6,3.35284339]
[1740067985681,3.68674974,2730.7,2730.6,3.081]
[1740067985871,2.95449974,2730.7,2730.6,0.27184339]
[1740067986282,3.68674974,2730.7,2730.6,0.27184339]
[1740067986677,2.95449974,2730.7,2730.6,0.27184339]
[1740067987078,2.95449974,2730.7,2730.2,3.7753]
[1740067987278,0.73233,2730.4,2730.3,0.27184339]
[1740067987475,3.2078,2730.4,2729.7,3.069]
[1740067987680,0.73241,2730.1,2730.0,0.27184339]
[1740067987872,3.2078,2730.1,2729.6,0.5552]
[1740067988076,0.73246,2729.9,2729.8,0.27184339]
[1740067988478,0.73256,2729.6,2729.4,0.00549974]
[1740067988782,1.1154,2729.8,2729.4,0.00549974]
[1740067988977,0.73256,2729.6,2729.4,0.00549974]
[1740067989373,0.73257,2729.5,2729.4,0.00549974]
[1740067989576,2.949,2729.5,2729.4,0.00549974]
[1740067989784,6.88937,2729.5,2729.4,0.00549974]
[1740067989981,11.77737,2729.5,2729.4,0.00549974]
[1740067990285,3.94037,2729.5,2729.4,0.00549974]
[1740067990679,0.5825,2729.7,2729.4,0.00549974]
[1740067990878,3.2078,2730.1,2729.6,0.27184339]
[1740067991078,3.2078,2730.1,2729.8,0.27184339]
[1740067991884,3.2078,2730.1,2729.4,0.00549974]
[1740067992081,3.2078,2730.1,2729.5,0.27184339]
[1740067992381,3.2078,2729.6,2729.4,0.00549974]
[1740067992581,0.73257,2729.5,2729.4,0.00549974]
[1740067992781,3.68157,2729.5,2729.4,0.00549974]
[1740067992980,3.5402,2729.5,2729.4,0.00549974]
[1740067993182,7.48057,2729.5,2729.4,0.00549974]
[1740067993579,4.53157,2729.5,2729.4,0.00549974]
[1740067993782,12.856,2729.5,2728.4,3.2078]
[1740067993985,3.2078,2728.7,2728.6,0.27184339]
[1740067994187,6.88958,2728.7,2728.0,3.7474]
[1740067994381,3.94058,2728.7,2728.5,0.27184339]
[1740067994577,3.2078,2728.7,2728.5,0.27184339]
[1740067994781,3.2078,2728.7,2728.0,0.5396]
[1740067994981,3.2078,2728.7,2728.4,0.27184339]
[1740067995289,0.73286,2728.4,2728.3,0.00549974]
[1740067995491,0.733,2727.9,2727.4,3.2078]
[1740067995689,0.73305,2727.8,2727.5,0.27184339]
[1740067996086,3.2078,2727.6,2726.9,3.2078]
[1740067996286,3.2078,2727.6,2725.8,11.40512147]
[1740067996287,3.94098,2727.3,2727.0,0.27184339]
[1740067996592,3.2078,2727.3,2726.9,0.00549974]
[1740067996789,6.2708,2727.3,2727.0,0.27184339]
[1740067997191,6.2708,2727.3,2726.9,0.00549974]
[1740067997495,3.2078,2727.0,2726.9,0.00549974]
[1740067998685,3.94104,2727.0,2726.9,0.00549974]
[1740067999092,3.2078,2727.0,2726.9,0.00549974]
[1740067999492,3.94104,2727.0,2726.9,0.00549974]
[1740067999691,4.48954,2727.0,2726.9,0.00549974]
[1740068000185,3.7563,2727.0,2726.9,0.00549974]
[1740068000592,7.55454,2727.0,2726.9,0.00549974]
[1740068001090,6.8213,2727.0,2726.9,0.00549974]
[1740068001896,3.7563,2727.0,2726.9,0.00549974]
[1740068002089,6.8123,2727.0,2726.9,0.00549974]
[1740068003089,3.2078,2727.0,2726.9,0.00549974]
[1740068003293,3.94104,2727.0,2726.9,0.00549974]
[1740068003492,3.2078,2727.0,2726.9,0.00549974]
[1740068004196,3.94104,2727.0,2726.9,0.00549974]
[1740068005405,11.77804,2727.0,2726.9,0.00549974]
[1740068005892,17.77804,2727.0,2726.9,0.00549974]
[1740068006096,17.0448,2727.0,2726.0,3.2078]
[1740068006292,0.73341,2726.4,2726.3,0.27184339]
[1740068006493,7.837,2726.4,2726.3,0.27184339]
[1740068006693,8.5704,2726.4,2726.3,0.27184339]
[1740068006893,7.837,2726.4,2726.3,0.27184339]
[1740068007193,8.5704,2726.4,2726.0,3.9413]
[1740068007397,7.837,2726.4,2726.3,0.27184339]
[1740068007697,7.837,2726.4,2726.3,1.00527339]
[1740068007896,7.837,2726.4,2726.3,0.27184339]
[1740068008286,7.837,2726.4,2726.3,1.00527339]
[1740068008494,7.837,2726.4,2726.3,0.27184339]
[1740068009894,0.73346,2726.2,2726.1,0.00549974]
[1740068010091,0.73346,2726.2,2726.1,0.27734313]
[1740068010292,11.77826,2726.2,2726.1,0.00549974]
[1740068011201,11.0448,2726.2,2726.1,0.00549974]
[1740068011387,7.837,2726.2,2726.1,0.00549974]
[1740068012097,11.0448,2726.2,2726.1,0.00549974]
[1740068012394,7.837,2726.2,2726.1,1.01082313]
[1740068012599,7.837,2726.2,2726.1,4.21862313]
[1740068012795,7.837,2726.2,2726.1,1.01082313]
[1740068012997,7.837,2726.2,2726.1,0.27734313]
[1740068013194,2.949,2726.2,2726.1,0.73897974]
[1740068013397,2.949,2726.2,2726.1,1.01082313]
[1740068013889,3.68246,2726.2,2726.1,0.27734313]
[1740068014696,3.68246,2726.2,2726.1,0.00549974]
[1740068015292,4.26906,2726.2,2726.1,0.00549974]
[1740068016092,10.88736,2726.2,2726.1,0.00549974]
[1740068016599,4.88736,2726.2,2726.1,0.00549974]
[1740068016895,2.998,2726.2,2726.1,0.00549974]
[1740068017197,3.2078,2726.3,2726.1,0.00549974]
[1740068017403,3.72846,2726.2,2726.1,0.00549974]
[1740068017592,2.995,2726.2,2726.1,0.00549974]
[1740068017796,2.991,2726.2,2726.1,0.73895974]
[1740068018097,2.991,2726.2,2726.1,1.01080313]
[1740068018296,0.5866,2726.5,2726.1,0.27734313]
[1740068018498,2.989,2726.5,2726.3,0.27184339]
[1740068018799,3.72239,2726.5,2726.4,0.27184339]
[1740068019000,2.989,2726.5,2726.4,0.27184339]
[1740068019195,2.989,2726.5,2726.1,0.00549974]
[1740068019498,3.2078,2726.6,2726.4,0.27184339]
[1740068019694,0.73337,2726.5,2726.4,0.27184339]
[1740068020195,3.2078,2726.6,2726.4,0.27184339]
[1740068020395,3.94116,2726.6,2726.4,0.27184339]
[1740068020597,3.2078,2726.6,2726.4,0.27184339]
[1740068021704,3.94116,2726.6,2726.4,0.27184339]
[1740068022506,3.2078,2726.6,2726.4,0.27184339]
[1740068022704,3.94116,2726.6,2726.4,0.27184339]
[1740068022899,0.73339,2726.5,2726.2,0.73345]
[1740068023099,3.2078,2726.6,2726.4,0.27184339]
[1740068023508,3.94116,2726.6,2726.3,0.73341]
[1740068023705,3.94116,2726.6,2726.4,0.27184339]
[1740068024109,3.2078,2726.6,2726.3,0.73341]
[1740068024407,3.2078,2726.6,2726.5,0.27184339]
[1740068024608,3.2078,2726.6,2726.5,1.00521339]
[1740068024810,3.2078,2726.9,2726.5,0.27184339]
[1740068025002,0.7333,2726.8,2726.7,0.27184339]
[1740068025303,3.2078,2726.9,2726.2,0.5758]
[1740068025508,2.42226,2727.1,2726.2,0.5758]
[1740068025509,3.94115,2726.6,2726.4,0.27184339]
[1740068025710,0.73337,2726.5,2726.4,0.27184339]
[1740068025904,3.2078,2726.6,2726.1,0.00549974]
[1740068026111,0.73346,2726.2,2726.1,0.27734313]
[1740068026407,11.77826,2726.2,2726.1,0.00549974]
[1740068028614,17.77826,2726.2,2726.1,0.00549974]
[1740068028908,11.77826,2726.2,2726.1,0.00549974]
[1740068029102,11.0448,2726.2,2726.1,0.00549974]
[1740068029306,11.0448,2726.2,2726.1,0.27734313]
[1740068030011,11.77826,2726.2,2726.1,0.00549974]
[1740068030209,11.0448,2726.2,2726.1,0.00549974]
[1740068030611,11.77826,2726.2,2726.1,0.00549974]
[1740068031705,14.73226,2726.2,2726.1,0.00549974]
[1740068032504,13.9988,2726.2,2726.1,0.00549974]
[1740068032705,11.77826,2726.2,2726.1,0.00549974]
[1740068033108,11.77826,2726.2,2726.1,0.00703933]
[1740068034010,3.94126,2726.2,2726.1,0.00703933]
[1740068035116,9.94126,2726.2,2726.1,0.00703933]
[1740068035709,0.73368,2725.4,2725.1,0.5531]
[1740068035911,2.949,2725.3,2725.1,1.28684]
[1740068036204,2.949,2725.3,2725.1,0.5531]
[1740068036409,2.949,2725.3,2725.2,0.27184339]
[1740068037013,2.949,2725.3,2725.0,0.00549974]
[1740068037014,0.73375,2725.1,2725.0,0.00549974]
[1740068037517,3.2078,2725.3,2725.0,0.00549974]
[1740068037922,0.73375,2725.1,2725.0,0.00549974]
[1740068038407,3.2078,2725.3,2725.2,0.73372]
[1740068038623,3.2078,2725.3,2725.2,0.27184339]
[1740068038809,3.2078,2725.3,2725.2,1.00556339]
[1740068039015,2.93249974,2725.5,2725.3,0.7337]
[1740068039215,2.93249974,2725.5,2725.4,0.27184339]
[1740068039716,3.66613974,2725.5,2725.4,0.27184339]
[1740068039919,2.93249974,2725.5,2725.0,0.00549974]
[1740068040121,2.93249974,2725.5,2725.4,0.27184339]
[1740068040323,0.73369,2725.4,2725.3,0.27184339]
[1740068040519,2.93249974,2725.5,2725.0,0.00549974]
[1740068040823,0.73375,2725.1,2725.0,0.00549974]
[1740068041022,3.2078,2725.3,2725.1,0.27184339]
[1740068041218,0.73375,2725.1,2725.0,0.00549974]
[1740068042915,8.57075,2725.1,2725.0,0.00549974]
[1740068043818,0.73375,2725.1,2725.0,0.00549974]
[1740068044017,6.73375,2725.1,2725.0,0.00549974]
[1740068044224,7.31695,2725.1,2725.0,0.00549974]
[1740068044825,0.73391,2724.5,2724.4,9.059]
[1740068045022,3.94171,2724.5,2724.4,9.33084339]
[1740068045223,3.94171,2724.5,2724.4,9.059]
[1740068046517,3.2078,2724.5,2724.4,9.059]
[1740068047417,3.94171,2724.5,2724.4,9.059]
[1740068047926,3.2078,2724.8,2724.4,9.33084339]
[1740068048118,2.899,2725.0,2724.9,0.7338]
[1740068048314,3.2078,2725.1,2725.0,0.27184339]
[1740068048616,8.48644,2725.4,2724.7,40.8]
[1740068048818,3.2078,2725.1,2724.8,0.27184339]
[1740068049019,6.6522,2725.4,2725.1,0.27184339]
[1740068049226,6.6522,2725.4,2725.2,0.27184339]
[1740068049423,6.6522,2725.4,2724.6,41.354]
[1740068049721,3.2078,2725.0,2724.6,0.554]
[1740068050026,0.73386,2724.7,2724.6,0.82584339]
[1740068050227,3.2078,2724.7,2724.6,0.82584339]
[1740068050426,3.2078,2725.0,2724.6,0.82584339]
[1740068050725,3.2078,2725.0,2724.8,0.27184339]
[1740068050917,3.2078,2725.0,2724.6,1.28788]
[1740068050918,0.73381,2724.9,2724.6,1.28788]
[1740068051124,3.7656,2725.3,2724.8,0.27184339]
[1740068051321,0.73375,2725.2,2725.1,0.27184339]
[1740068051727,3.7656,2725.3,2724.6,0.554]
[1740068051930,0.73372,2725.2,2725.1,0.27184339]
[1740068052825,3.2078,2725.3,2725.1,0.27184339]
[1740068053022,3.2078,2725.3,2724.6,3.7618]
[1740068053220,0.73378,2725.0,2724.9,0.27184339]
[1740068054226,5.04209,2725.3,2724.6,3.7618]
[1740068054424,0.73381,2724.9,2724.8,0.27184339]
[1740068054624,3.94158,2725.0,2724.9,0.27184339]
[1740068055031,3.2078,2725.0,2724.6,0.554]
[1740068055227,3.94158,2725.0,2724.9,0.27184339]
[1740068055525,0.73386,2724.7,2724.6,0.554]
[1740068055723,3.94166,2724.7,2724.6,0.554]
[1740068056027,3.94166,2724.7,2724.6,0.82584339]
[1740068057325,3.2078,2724.7,2724.6,0.82584339]
[1740068057630,3.2078,2724.7,2724.6,1.55973339]
[1740068057832,6.0788,2725.1,2724.6,0.82584339]